bitfinex-derivatives/quotes_BNBF0:USTF0_20250617
["timestamp","ask_amount","ask_price","bid_price","bid_amount"]
[1750184547051,1.04242515,644.04,643.3,1.158]
[1750184547254,1.04242515,644.03,643.3,1.158]
[1750184547452,1.04242515,644.02,643.3,1.158]
[1750184547649,1.04242515,644.01,643.3,1.158]
[1750184547849,0.27030596,644.13,643.3,1.158]
[1750184547850,1.04242515,644.0,643.3,1.158]
[1750184548051,1.04242515,643.99,643.3,1.158]
[1750184548250,1.04242515,643.98,643.3,1.158]
[1750184548455,1.04242515,643.97,643.3,1.158]
[1750184548755,1.04242515,643.96,643.3,1.158]
[1750184549055,1.04242515,643.95,643.3,1.158]
[1750184549258,1.04242515,643.94,643.3,1.158]
[1750184549554,1.04242515,643.93,643.3,1.158]
[1750184549859,1.04242515,643.92,643.3,1.158]
[1750184550157,0.27030596,644.13,643.3,1.158]
[1750184550357,1.04281749,644.12,643.3,1.158]
[1750184550558,1.04281749,644.11,643.3,1.158]
[1750184550754,1.04281749,644.1,643.3,1.158]
[1750184550957,1.04281749,644.09,643.3,1.158]
[1750184551162,1.04281749,644.08,643.3,1.158]
[1750184551456,1.04281749,644.07,643.3,1.158]
[1750184551655,1.04281749,644.06,643.3,1.158]
[1750184551854,1.04281749,644.05,643.3,1.158]
[1750184552058,1.04281749,644.04,643.3,1.158]
[1750184552356,1.04281749,644.03,643.3,1.158]
[1750184552553,1.04281749,644.02,643.3,1.158]
[1750184552759,1.04281749,644.01,643.3,1.158]
[1750184552954,1.04281749,644.0,643.3,1.158]
[1750184553159,1.04281749,643.99,643.3,1.158]
[1750184553356,1.04281749,643.98,643.3,1.158]
[1750184553560,1.04281749,643.97,643.3,1.158]
[1750184553758,1.04281749,643.96,643.3,1.158]
[1750184553964,0.27030596,644.13,643.3,1.158]
[1750184554263,1.04321499,644.12,643.3,1.158]
[1750184554564,1.04321499,644.11,643.3,1.158]
[1750184554763,1.04321499,644.1,643.3,1.158]
[1750184554961,1.04321499,644.09,643.3,1.158]
[1750184555164,1.04321499,644.08,643.3,1.158]
[1750184555464,1.04321499,644.07,643.3,1.158]
[1750184555665,1.04321499,644.06,643.3,1.158]
[1750184555961,1.04321499,644.05,643.3,3.47203955]
[1750184556165,1.04321499,644.04,643.3,3.47203955]
[1750184556361,1.04321499,644.03,643.3,3.47203955]
[1750184556562,1.04321499,644.02,643.31,2.31403955]
[1750184556758,1.04321499,644.01,643.31,2.31403955]
[1750184556962,1.04321499,644.0,643.31,2.31403955]
[1750184557161,1.04321499,643.99,643.31,2.31403955]
[1750184557362,1.04321499,643.98,643.31,2.31403955]
[1750184557666,1.04321499,643.97,643.31,2.31403955]
[1750184557864,1.04321499,643.96,643.31,2.31403955]
[1750184558065,1.04321499,643.95,643.31,2.31403955]
[1750184558265,0.27030596,644.13,643.31,2.31403955]
[1750184558466,1.04400959,644.12,643.31,2.31403955]
[1750184558760,1.04400959,644.11,643.31,2.31403955]
[1750184558964,1.04400959,644.1,643.31,2.31403955]
[1750184559161,1.04400959,644.09,643.32,1.451]
[1750184559364,1.04400959,644.08,643.32,1.451]
[1750184559666,1.04400959,644.07,643.32,1.451]
[1750184559864,1.04400959,644.06,643.32,1.451]
[1750184560067,1.04400959,644.05,643.32,1.451]
[1750184560268,1.04400959,644.04,643.32,1.451]
[1750184560465,1.04400959,644.03,643.32,1.451]
[1750184560666,1.04400959,644.02,643.32,1.451]
[1750184560868,1.04400959,644.01,643.32,1.451]
[1750184561065,1.04400959,644.0,643.32,1.451]
[1750184561270,1.04400959,643.99,643.32,1.451]
[1750184561470,1.04400959,643.98,643.32,1.451]
[1750184561669,1.04400959,643.97,643.32,1.451]
[1750184561870,1.04400959,643.96,643.32,1.451]
[1750184562072,1.04400959,643.95,643.32,1.451]
[1750184562267,1.04400959,643.94,643.32,1.451]
[1750184562467,1.04400959,643.93,643.32,1.451]
[1750184562671,1.04400959,643.92,643.32,1.451]
[1750184562872,1.04400959,643.91,643.32,1.451]
[1750184563073,0.27030596,644.13,643.32,1.451]
[1750184563074,1.04400959,643.9,643.32,1.451]
[1750184563274,1.04400959,643.89,643.32,1.451]
[1750184563474,1.04400959,643.88,643.32,1.451]
[1750184563673,1.04400959,643.87,643.32,1.451]
[1750184563873,1.04400959,643.86,643.32,1.451]
[1750184564072,0.27030596,644.13,643.32,1.451]
[1750184564273,1.04473791,644.12,643.32,1.451]
[1750184564478,1.04473791,644.11,643.32,1.451]
[1750184564674,1.04473791,644.1,643.32,1.451]
[1750184564877,0.27030596,644.13,643.32,1.451]
[1750184564878,1.04473791,644.09,643.32,1.451]
[1750184565079,1.04473791,644.08,643.32,1.451]
[1750184565281,1.04473791,644.07,643.32,1.451]
[1750184565575,1.04473791,644.06,643.32,1.451]
[1750184565779,1.04473791,644.05,643.32,1.451]
[1750184565978,1.04473791,644.04,643.32,1.451]
[1750184566179,1.04473791,644.03,643.35,2.31403955]
[1750184566376,1.04473791,644.02,643.35,2.31403955]
[1750184566576,1.42632756,644.13,643.36,2.31403955]
[1750184566577,1.04473791,644.01,643.36,2.31403955]
[1750184566779,1.04473791,644.0,643.36,2.31403955]
[1750184567076,1.04473791,643.99,643.39,2.31403955]
[1750184567275,1.04473791,643.98,643.39,2.31403955]
[1750184567580,1.04473791,643.97,643.39,2.31403955]
[1750184567879,1.04473791,643.96,643.39,2.31403955]
[1750184568076,1.04473791,643.95,643.39,2.31403955]
[1750184568279,1.04473791,643.94,643.39,2.31403955]
[1750184568484,1.04473791,643.93,643.39,2.31403955]
[1750184568677,1.04473791,643.92,643.39,2.31403955]
[1750184568879,1.1560216,644.11,643.39,2.31403955]
[1750184569082,1.04548948,644.1,643.39,2.31403955]
[1750184569379,1.04548948,644.09,643.4,2.31403955]
[1750184569579,1.04548948,644.08,643.4,2.31403955]
[1750184569878,1.04548948,644.07,643.4,2.31403955]
[1750184570081,1.04548948,644.06,643.4,2.31403955]
[1750184570278,1.04548948,644.05,643.4,2.31403955]
[1750184570477,1.04548948,644.04,643.39,2.31403955]
[1750184570677,1.04548948,644.03,643.38,2.31403955]
[1750184570881,1.04548948,644.02,643.36,2.31403955]
[1750184571079,1.04548948,644.01,643.35,2.31403955]
[1750184571280,1.04548948,644.0,643.32,3.76503955]
[1750184571480,1.04548948,643.99,643.32,1.451]
[1750184571682,1.04548948,643.98,643.32,1.451]
[1750184571879,1.04548948,643.97,643.32,1.451]
[1750184572078,1.04548948,643.96,643.32,1.451]
[1750184572281,1.04548948,643.95,643.32,1.451]
[1750184572482,1.04548948,643.94,643.32,1.451]
[1750184572685,1.04548948,643.93,643.32,1.451]
[1750184572883,1.04548948,643.92,643.32,1.451]
[1750184573181,1.04548948,643.91,643.32,1.451]
[1750184573482,1.04548948,643.9,643.32,1.451]
[1750184573685,1.04548948,643.89,643.32,1.451]
[1750184573981,1.04548948,643.88,643.32,1.451]
[1750184574185,1.04548948,643.87,643.32,1.451]
[1750184574387,1.04548948,643.86,643.32,1.451]
[1750184574687,1.04548948,643.85,643.32,1.451]
[1750184574981,1.04548948,643.84,643.32,1.451]
[1750184575182,1.1560216,644.06,643.32,1.451]
[1750184575382,1.0455184,644.05,643.32,1.451]
[1750184575582,1.0455184,644.04,643.32,1.451]
[1750184575882,1.0455184,644.03,643.32,1.451]
[1750184576187,1.0455184,644.02,643.32,1.451]
[1750184576379,1.0455184,644.01,643.32,1.451]
[1750184576585,1.0455184,644.0,643.32,1.451]
[1750184576883,1.0455184,643.99,643.33,1.256]
[1750184577083,1.0455184,643.98,643.33,1.256]
[1750184577282,1.0455184,643.97,643.33,1.256]
[1750184577486,1.0455184,643.96,643.33,1.256]
[1750184577682,1.0455184,643.95,643.33,1.256]
[1750184577886,1.0455184,643.94,643.33,1.256]
[1750184578182,1.0455184,643.93,643.33,1.256]
[1750184578386,1.0455184,643.92,643.33,1.256]
[1750184578685,1.0455184,643.91,643.33,1.256]
[1750184578882,1.0455184,643.9,643.33,1.256]
[1750184579083,1.0455184,643.89,643.33,1.256]
[1750184579286,1.0455184,643.88,643.33,1.256]
[1750184579583,1.0455184,643.87,643.33,1.256]
[1750184579786,1.0455184,643.86,643.33,1.256]
[1750184579988,1.0455184,643.85,643.33,1.256]
[1750184580184,1.0455184,643.84,643.33,1.256]
[1750184580386,1.1560216,644.06,643.33,1.256]
[1750184580586,1.04623431,644.05,643.33,1.256]
[1750184580787,1.04623431,644.04,643.33,1.256]
[1750184580989,1.04623431,644.03,643.33,1.256]
[1750184581190,1.04623431,644.02,643.33,1.256]
[1750184581388,1.04623431,644.01,643.33,1.256]
[1750184581691,1.04623431,644.0,643.33,3.57003955]
[1750184581892,1.04623431,643.99,643.33,3.57003955]
[1750184582192,1.04623431,643.98,643.34,3.55303955]
[1750184582391,1.04623431,643.97,643.34,3.55303955]
[1750184582591,1.04623431,643.96,643.34,3.55303955]
[1750184582792,1.04623431,643.95,643.34,1.239]
[1750184582993,1.04623431,643.94,643.34,1.239]
[1750184583190,1.04623431,643.93,643.34,3.55303955]
[1750184583394,1.04623431,643.92,643.34,1.239]
[1750184583591,1.04623431,643.91,643.36,2.31403955]
[1750184583893,1.04623431,643.9,643.36,2.31403955]
[1750184584094,1.1560216,644.1,643.36,2.31403955]
[1750184584291,1.04629213,644.09,643.36,2.31403955]
[1750184584490,1.04629213,644.08,643.36,2.31403955]
[1750184584693,1.04629213,644.07,643.36,2.31403955]
[1750184584892,1.04629213,644.06,643.36,2.31403955]
[1750184585092,1.04629213,644.05,643.36,2.31403955]
[1750184585293,1.04629213,644.04,643.37,2.31403955]
[1750184585493,1.04629213,644.03,643.37,2.31403955]
[1750184585697,1.04629213,644.02,643.36,2.31403955]
[1750184585894,1.04629213,644.01,643.36,2.31403955]
[1750184586094,1.04629213,644.0,643.36,2.31403955]
[1750184586296,1.1560216,644.1,643.36,2.31403955]
[1750184586297,1.04629213,643.99,643.36,2.31403955]
[1750184586596,1.04629213,643.98,643.36,2.31403955]
[1750184586795,1.04629213,643.97,643.36,2.31403955]
[1750184586994,1.04629213,643.96,643.36,2.31403955]
[1750184587199,1.04629213,643.95,643.36,2.31403955]
[1750184587395,1.04629213,643.94,643.36,2.31403955]
[1750184587694,1.04629213,643.93,643.36,2.31403955]
[1750184587899,1.04629213,643.92,643.35,2.31403955]
[1750184588100,1.04629213,643.91,643.34,3.55303955]
[1750184588395,1.04629213,643.9,643.34,3.55303955]
[1750184588598,1.04629213,643.89,643.34,3.55303955]
[1750184588796,1.04629213,643.88,643.34,3.55303955]
[1750184588996,1.04629213,643.87,643.34,3.55303955]
[1750184589199,1.04629213,643.86,643.34,1.239]
[1750184589400,1.04629213,643.85,643.34,1.239]
[1750184589596,1.04629213,643.84,643.35,1.084]
[1750184589796,1.04629213,643.83,643.35,1.084]
[1750184590096,1.1560216,644.04,643.35,1.084]
[1750184590300,1.04666481,644.03,643.35,1.084]
[1750184590599,1.04666481,644.02,643.35,1.084]
[1750184590801,1.04666481,644.01,643.35,1.084]
[1750184591001,1.04666481,644.0,643.35,1.084]
[1750184591203,1.04666481,643.99,643.35,1.084]
[1750184591496,1.04666481,643.98,643.35,1.084]
[1750184591701,1.04666481,643.97,643.35,1.084]
[1750184591901,1.04666481,643.96,643.35,1.084]
[1750184592099,1.04666481,643.95,643.35,1.084]
[1750184592299,1.04666481,643.94,643.35,1.084]
[1750184592500,1.04666481,643.93,643.35,1.084]
[1750184592701,1.04666481,643.92,643.35,1.084]
[1750184592901,1.04666481,643.91,643.35,1.084]
[1750184593101,1.04666481,643.9,643.35,1.084]
[1750184593305,1.04666481,643.89,643.35,1.084]
[1750184593504,1.04666481,643.88,643.35,1.084]
[1750184593805,1.04666481,643.87,643.35,1.084]
[1750184594003,1.04666481,643.86,643.35,1.084]
[1750184594207,1.04666481,643.85,643.35,1.084]
[1750184594510,1.04666481,643.84,643.35,1.084]
[1750184594806,1.04666481,643.83,643.35,1.084]
[1750184595006,1.04666481,643.82,643.35,1.084]
[1750184595209,1.1560216,644.05,643.35,1.084]
[1750184595510,1.04689792,644.04,643.35,1.084]
[1750184595809,1.04689792,644.03,643.35,1.084]
[1750184596003,1.04689792,644.02,643.35,1.084]
[1750184596208,1.04689792,644.01,643.35,1.084]
[1750184596405,1.04689792,644.0,643.35,1.084]
[1750184596606,1.04689792,643.99,643.35,1.084]
[1750184596810,1.04689792,643.98,643.35,1.084]
[1750184597010,1.04689792,643.97,643.35,1.084]
[1750184597210,1.04689792,643.96,643.35,1.084]
[1750184597507,1.04689792,643.95,643.35,1.084]
[1750184597712,1.04689792,643.94,643.35,1.084]
[1750184597908,1.04689792,643.93,643.35,1.084]
[1750184598109,1.04689792,643.92,643.35,1.084]
[1750184598307,1.04689792,643.91,643.35,1.084]
[1750184598511,1.04689792,643.9,643.35,1.084]
[1750184598708,1.04689792,643.89,643.35,1.084]
[1750184598909,1.04689792,643.88,643.35,1.084]
[1750184599110,1.04689792,643.87,643.35,1.084]
[1750184599310,1.04689792,643.86,643.35,1.084]
[1750184599513,1.04689792,643.85,643.35,1.084]
[1750184599714,1.04689792,643.84,643.35,1.084]
[1750184600013,1.04689792,643.83,643.35,1.084]
[1750184600213,1.04689792,643.82,643.35,1.084]
[1750184600413,1.04689792,643.81,643.35,1.084]
[1750184600613,1.04689792,643.8,643.35,1.084]
[1750184600814,1.1560216,644.04,643.35,1.084]
[1750184601114,1.04699129,644.03,643.35,1.084]
[1750184601313,1.04699129,644.02,643.35,1.084]
[1750184601508,1.04699129,644.01,643.35,1.084]
[1750184601709,1.04699129,644.0,643.35,1.084]
[1750184601909,1.04699129,643.99,643.35,1.084]
[1750184602112,1.04699129,643.98,643.35,1.084]
[1750184602314,1.04699129,643.97,643.35,1.084]
[1750184602615,1.04699129,643.96,643.35,1.084]
[1750184602814,1.04699129,643.95,643.35,1.084]
[1750184603013,1.04699129,643.94,643.35,1.084]
[1750184603212,1.04699129,643.93,643.35,1.084]
[1750184603516,1.04699129,643.92,643.35,1.084]
[1750184603718,1.04699129,643.91,643.35,1.084]
[1750184604014,1.04699129,643.9,643.35,1.084]
[1750184604214,1.04699129,643.89,643.35,1.084]
[1750184604517,1.04699129,643.88,643.35,1.084]
[1750184604718,1.04699129,643.87,643.35,1.084]
[1750184605017,1.04699129,643.86,643.35,1.084]
[1750184605214,1.04699129,643.85,643.35,1.084]
[1750184605414,1.04699129,643.84,643.35,1.084]
[1750184605614,1.04699129,643.83,643.35,1.084]
[1750184605817,1.04699129,643.82,643.35,1.084]
[1750184606117,1.04699129,643.81,643.35,1.084]
[1750184606317,1.1560216,644.03,643.35,1.084]
[1750184606511,1.04187169,644.02,643.35,1.084]
[1750184606713,1.04187169,644.01,643.35,1.084]
[1750184606917,1.04187169,644.0,643.35,1.084]
[1750184607114,1.04187169,643.99,643.35,1.084]
[1750184607318,1.04187169,643.98,643.35,1.084]
[1750184607517,1.04187169,643.97,643.35,1.084]
[1750184607714,1.04187169,643.96,643.35,1.084]
[1750184607917,1.04187169,643.95,643.35,1.084]
[1750184608113,1.04187169,643.94,643.35,1.084]
[1750184608414,1.04187169,643.93,643.35,1.084]
[1750184608613,1.04187169,643.92,643.35,1.084]
[1750184608812,1.04187169,643.91,643.35,1.084]
[1750184609117,1.04187169,643.9,643.35,1.084]
[1750184609312,1.04187169,643.89,643.35,1.084]
[1750184609514,1.04187169,643.88,643.33,1.256]
[1750184609713,1.04187169,643.87,643.33,1.256]
[1750184609919,1.04187169,643.86,643.33,1.256]
[1750184610218,1.04187169,643.85,643.33,1.256]
[1750184610414,1.04187169,643.84,643.33,1.256]
[1750184610619,1.04187169,643.83,643.33,1.256]
[1750184610918,1.04187169,643.82,643.33,1.256]
[1750184611218,1.04187169,643.81,643.33,1.256]
[1750184611415,1.04187169,643.8,643.33,1.256]
[1750184611616,1.04187169,643.79,643.33,1.256]
[1750184611815,1.04187169,643.78,643.33,1.256]
[1750184612018,1.04187169,643.77,643.34,1.064]
[1750184612222,1.04187169,643.76,643.34,1.965]
[1750184612520,1.1560216,644.03,643.34,1.965]
[1750184612718,1.04189869,644.02,643.34,1.965]
[1750184613019,1.04189869,644.01,643.34,1.965]
[1750184613216,1.04189869,644.0,643.34,1.965]
[1750184613421,1.04189869,643.99,643.34,1.965]
[1750184613617,1.04189869,643.98,643.34,1.965]
[1750184613821,1.04189869,643.97,643.34,1.965]
[1750184614117,1.04189869,643.96,643.34,1.965]
[1750184614323,1.04189869,643.95,643.34,1.965]
[1750184614518,1.04189869,643.94,643.34,1.965]
[1750184614718,1.04189869,643.93,643.34,1.965]
[1750184614916,1.04189869,643.92,643.34,1.965]
[1750184615119,1.04189869,643.91,643.34,1.965]
[1750184615320,1.04189869,643.9,643.34,1.965]
[1750184615522,1.04189869,643.89,643.34,1.965]
[1750184615724,1.04189869,643.88,643.34,1.965]
[1750184615921,1.04189869,643.87,643.34,1.965]
[1750184616126,1.04189869,643.86,643.34,1.965]
[1750184616420,1.04189869,643.85,643.34,1.965]
[1750184616721,1.04189869,643.84,643.34,1.965]
[1750184616926,1.04189869,643.83,643.35,0.929]
[1750184617221,1.04189869,643.82,643.35,0.929]
[1750184617424,1.04189869,643.81,643.35,0.929]
[1750184617622,1.04189869,643.8,643.35,0.929]
[1750184617823,1.1560216,644.08,643.35,0.929]
[1750184618121,1.04174173,644.07,643.35,0.929]
[1750184618425,1.1560216,644.08,643.35,0.929]
[1750184618426,1.04174173,644.06,643.35,0.929]
[1750184618625,1.04174173,644.05,643.35,0.929]
[1750184618825,1.04174173,644.04,643.35,0.929]
[1750184619024,1.04174173,644.03,643.35,0.929]
[1750184619221,1.04174173,644.02,643.35,0.929]
[1750184619426,1.04174173,644.01,643.35,0.929]
[1750184619626,1.04174173,644.0,643.35,0.929]
[1750184619826,1.04174173,643.99,643.35,0.929]
[1750184620027,1.04174173,643.98,643.35,0.929]
[1750184620227,1.04174173,643.97,643.35,0.929]
[1750184620528,1.04174173,643.96,643.35,0.929]
[1750184620726,1.04174173,643.95,643.35,0.929]
[1750184620929,1.04174173,643.94,643.35,0.929]
[1750184621127,1.04174173,643.93,643.35,0.929]
[1750184621326,1.04174173,643.92,643.35,0.929]
[1750184621526,1.04174173,643.91,643.35,0.929]
[1750184621724,1.04184768,643.9,643.35,0.929]
[1750184621925,1.04184768,643.89,643.35,0.929]
[1750184622129,1.04184768,643.88,643.35,0.929]
[1750184622329,0.27030596,644.13,643.35,0.929]
[1750184622529,1.04181413,644.12,643.35,0.929]
[1750184622732,1.04181413,644.11,643.35,0.929]
[1750184622927,1.04181413,644.1,643.35,0.929]
[1750184623132,1.04181413,644.09,643.35,0.929]
[1750184623431,1.04181413,644.08,643.35,0.929]
[1750184623727,1.04181413,644.07,643.35,0.929]
[1750184623927,1.0417834,644.06,643.35,0.929]
[1750184624128,1.0417834,644.05,643.35,0.929]
[1750184624327,1.0417834,644.04,643.35,0.929]
[1750184624632,1.0417834,644.03,643.35,0.929]
[1750184624928,1.0417834,644.02,643.35,0.929]
[1750184625129,1.0417834,644.01,643.35,0.929]
[1750184625430,1.0417834,644.0,643.35,0.929]
[1750184625728,1.0417834,643.99,643.35,0.929]
[1750184626032,1.0417834,643.98,643.35,0.929]
[1750184626233,1.0417834,643.97,643.35,0.929]
[1750184626432,1.0417834,643.96,643.35,0.929]
[1750184626632,1.0417834,643.95,643.35,0.929]
[1750184626933,1.0417834,643.94,643.35,0.929]
[1750184627130,0.27030596,644.13,643.35,0.929]
[1750184627131,1.0417834,643.93,643.35,0.929]
[1750184627334,1.0417834,643.92,643.35,0.929]
[1750184627631,1.0417834,643.91,643.35,0.929]
[1750184627831,1.0417834,643.9,643.35,0.929]
[1750184628036,1.0417834,643.89,643.35,0.929]
[1750184628236,1.0417834,643.88,643.35,0.929]
[1750184628437,0.27030596,644.13,643.35,0.929]
[1750184628632,1.04162203,644.12,643.35,0.929]
[1750184628830,1.04162203,644.11,643.35,0.929]
[1750184629035,1.04162203,644.1,643.35,0.929]
[1750184629334,1.04162203,644.09,643.35,0.929]
[1750184629534,0.27030596,644.13,643.35,0.929]
[1750184629535,1.04162203,644.08,643.35,0.929]
[1750184629735,1.04162203,644.07,643.35,0.929]
[1750184629935,1.04162203,644.06,643.35,0.929]
[1750184630134,1.04162203,644.05,643.35,0.929]
[1750184630334,1.04162203,644.04,643.35,0.929]
[1750184630539,1.04162203,644.03,643.35,0.929]
[1750184630734,1.04162203,644.02,643.35,0.929]
[1750184630938,1.04162203,644.01,643.35,0.929]
[1750184631136,1.04162203,644.0,643.35,0.929]
[1750184631335,1.16235219,644.12,643.35,0.929]
[1750184631336,1.04162203,643.99,643.35,0.929]
[1750184631539,1.04162203,643.98,643.35,0.929]
[1750184631736,1.04162203,643.97,643.36,1.121]
[1750184631940,1.04162203,643.96,643.36,1.121]
[1750184632239,1.04162203,643.95,643.36,1.121]
[1750184632436,1.04162203,643.94,643.36,1.121]
[1750184632738,1.04162203,643.93,643.36,1.121]
[1750184632940,1.04162203,643.92,643.36,1.121]
[1750184633138,1.04162203,643.91,643.36,1.121]
[1750184633339,1.04162203,643.9,643.36,1.121]
[1750184633637,1.04162203,643.89,643.36,1.121]
[1750184633839,1.04162203,643.88,643.36,1.121]
[1750184634037,1.04162203,643.87,643.36,1.121]
[1750184634241,1.04162203,643.86,643.36,1.121]
[1750184634436,1.04162203,643.85,643.36,1.121]
[1750184634639,1.04162203,643.84,643.36,1.121]
[1750184634940,1.16235219,644.1,643.37,1.451]
[1750184635236,1.04165333,644.09,643.37,1.451]
[1750184635436,1.04165333,644.08,643.37,1.451]
[1750184635638,1.04165333,644.07,643.37,1.451]
[1750184635837,1.04165333,644.06,643.37,1.451]
[1750184636141,1.04165333,644.05,643.37,1.451]
[1750184636338,1.04165333,644.04,643.37,1.451]
[1750184636540,1.04165333,644.03,643.37,1.451]
[1750184636739,1.04165333,644.02,643.37,1.451]
[1750184636938,1.04165333,644.01,643.37,1.451]
[1750184637139,1.04165333,644.0,643.37,1.451]
[1750184637339,1.04165333,643.99,643.37,1.451]
[1750184637540,1.04165333,643.98,643.37,1.451]
[1750184637739,1.04165333,643.97,643.37,1.451]
[1750184637938,1.04165333,643.96,643.37,1.451]
[1750184638238,1.04165333,643.95,643.37,1.451]
[1750184638442,1.04165333,643.94,643.37,1.451]
[1750184638639,1.04165333,643.93,643.37,1.451]
[1750184638842,1.04165333,643.92,643.37,1.451]
[1750184639138,1.04165333,643.91,643.37,1.451]
[1750184639336,1.04165333,643.9,643.37,1.451]
[1750184639540,1.04165333,643.89,643.37,1.451]
[1750184639742,1.04165333,643.88,643.37,1.451]
[1750184639941,1.04165333,643.87,643.37,1.451]
[1750184640139,1.04165333,643.86,643.37,1.451]
[1750184640342,1.16235219,644.07,643.37,1.451]
[1750184640540,1.04403174,644.06,643.37,1.451]
[1750184640840,1.04403174,644.05,643.37,1.451]
[1750184641043,1.04403174,644.04,643.37,1.451]
[1750184641243,1.04403174,644.03,643.37,1.451]
[1750184641543,1.04403174,644.02,643.37,1.451]
[1750184641740,1.16235219,644.08,643.37,1.451]
[1750184641741,1.04403174,644.01,643.37,1.451]
[1750184641939,1.04403174,644.0,643.37,1.451]
[1750184642140,1.04403174,643.99,643.37,1.451]
[1750184642442,1.04403174,643.98,643.37,1.451]
[1750184642641,1.04403174,643.97,643.37,1.451]
[1750184642841,1.04403174,643.96,643.37,1.451]
[1750184643044,1.04403174,643.95,643.37,1.451]
[1750184643240,1.04403174,643.94,643.37,1.451]
[1750184643440,1.04403174,643.93,643.37,1.451]
[1750184643644,1.04403174,643.92,643.37,1.451]
[1750184643842,1.04403174,643.91,643.37,1.451]
[1750184644145,1.04403174,643.9,643.37,1.451]
[1750184644343,1.04403174,643.89,643.37,1.451]
[1750184644542,1.04403174,643.88,643.37,1.451]
[1750184644746,1.04403174,643.87,643.37,1.451]
[1750184644945,1.04403174,643.86,643.37,1.451]
[1750184645149,1.16235219,644.07,643.37,1.451]
[1750184645447,1.04406225,644.06,643.37,1.451]
[1750184645646,1.04406225,644.05,643.37,1.451]
[1750184645844,1.04406225,644.04,643.37,1.451]
[1750184646148,1.04406225,644.03,643.37,1.451]
[1750184646348,1.04406225,644.02,643.37,1.451]
[1750184646647,1.04406225,644.01,643.37,1.451]
[1750184646846,1.04406225,644.0,643.37,1.451]
[1750184647147,1.04406225,643.99,643.38,1.355]
[1750184647348,1.04406225,643.98,643.38,1.355]
[1750184647646,0.27030596,644.13,643.38,1.355]
[1750184647647,1.04406225,643.97,643.38,1.355]
[1750184647847,1.04406225,643.96,643.38,1.355]
[1750184648143,1.16235219,644.08,643.38,1.355]
[1750184648144,1.04406225,643.95,643.38,1.355]
[1750184648447,1.04406225,643.94,643.38,3.66903955]
[1750184648647,1.04406225,643.93,643.38,3.66903955]
[1750184648850,1.04406225,643.92,643.38,3.66903955]
[1750184649048,1.04406225,643.91,643.38,3.66903955]
[1750184649248,1.04406225,643.9,643.38,3.66903955]
[1750184649444,1.04406225,643.89,643.38,3.66903955]
[1750184649746,1.16235219,644.12,643.38,3.66903955]
[1750184649945,1.04401116,644.11,643.38,3.66903955]
[1750184650148,1.04401116,644.1,643.38,3.66903955]
[1750184650348,1.16235219,644.12,643.38,3.66903955]
[1750184650349,1.04401116,644.09,643.38,3.66903955]
[1750184650550,1.04401116,644.08,643.42,2.31403955]
[1750184650848,1.04401116,644.07,643.42,2.31403955]
[1750184651050,1.04401116,644.06,643.42,2.31403955]
[1750184651250,1.04401116,644.05,643.42,2.31403955]
[1750184651550,1.04401116,644.04,643.42,2.31403955]
[1750184651750,1.04401116,644.03,643.42,2.31403955]
[1750184651950,1.04401116,644.02,643.42,2.31403955]
[1750184652150,1.04401116,644.01,643.42,2.31403955]
[1750184652349,1.04401116,644.0,643.41,2.31403955]
[1750184652546,1.04401116,643.99,643.38,1.355]
[1750184652749,1.04401116,643.98,643.38,1.355]
[1750184652948,1.04401116,643.97,643.38,1.355]
[1750184653151,1.04401116,643.96,643.38,1.355]
[1750184653353,1.04401116,643.95,643.38,1.355]
[1750184653648,1.04401116,643.94,643.39,1.112]
[1750184653849,1.04401116,643.93,643.39,1.112]
[1750184654048,1.04401116,643.92,643.39,1.112]
[1750184654249,1.04401116,643.91,643.39,1.112]
[1750184654451,1.04401116,643.9,643.39,1.112]